lending/lending_fUSD_20251111
["ID","MTS","AMOUNT","RATE_DAILY","PERIOD"]
[393608339,1762851039267,-866.0,0.00017346,2]
[393608340,1762851039277,-152.21009688,0.00017353,2]
[393608341,1762851039286,-6574.30551495,0.00017421,2]
[393608342,1762851039297,-1000.0,0.00017521,2]
[393608343,1762851039307,-1000.0,0.00017521,2]
[393608344,1762851039482,-664.71039367,0.00017521,2]
[393608345,1762851039492,-1000.0,0.00017521,2]
[393608346,1762851039502,-1000.0,0.00017521,2]
[393608347,1762851039511,-1000.0,0.00017521,2]
[393608348,1762851039521,-292.07745313,0.00017521,2]
[393608349,1762851039530,-814.94741425,0.00017521,2]
[393608350,1762851039539,-1000.0,0.00017521,2]
[393608351,1762851039551,-228.14650797,0.00017521,2]
[393608352,1762851039560,-500.0,0.00017521,2]
[393608353,1762851039569,-652.06591262,0.00017521,2]
[393608354,1762851039579,-1000.0,0.00017521,2]
[393608355,1762851039588,-427.26831172,0.00017521,2]
[393608356,1762851039598,-1000.0,0.00017521,2]
[393608357,1762851039607,-500.0,0.00017521,2]
[393608358,1762851039617,-502.91315345,0.00017521,2]
[393608359,1762851039627,-868.79,0.00017612,2]
[393608360,1762851039636,-52037.35930119,0.00017657,2]
[393608361,1762851039645,-34600.54959559,0.00017657,2]
[393608362,1762851039655,-793.46197455,0.00017679,2]
[393608363,1762851039664,-1152.79686346,0.00017783,2]
[393608364,1762851039674,-215.2,0.0001785,2]
[393608365,1762851039684,-868.79,0.00017886,2]
[393608366,1762851039693,-500.0,0.00017898,2]
[393608367,1762851039702,-587.0,0.00017972,2]
[393608368,1762851039711,-500.0,0.00017999,2]
[393608369,1762851039721,-500.0,0.00017999,2]
[393608370,1762851039732,-300.0,0.00018037,2]
[393608371,1762851039742,-707.77038929,0.00018058,2]
[393608372,1762851039756,-1500.0,0.00018068,2]
[393608373,1762851039765,-1002.12563559,0.00018068,2]
[393608374,1762851039774,-1500.0,0.00018068,2]
[393608375,1762851039783,-1500.0,0.00018068,2]
[393608376,1762851039792,-1500.0,0.00018068,2]
[393608377,1762851039802,-1500.0,0.00018068,2]
[393608378,1762851039811,-1500.0,0.00018068,2]
[393608379,1762851039820,-691.24,0.00018082,2]
[393608380,1762851039830,-2351.0,0.00018155,2]
[393608381,1762851039839,-868.79,0.0001816,2]
[393608382,1762851039848,-215.2,0.00018378,2]
[393608383,1762851039857,-974.19561682,0.00018421,2]
[393608385,1762851039866,-500.0,0.00018431,2]
[393608386,1762851039876,-868.79,0.00018434,2]
[393608387,1762851039885,-437.5815132,0.00018464,2]
[393608388,1762851039895,-1000.0,0.00018531,2]
[393608389,1762851039904,-9999.99,0.00018533,2]
[393608390,1762851039914,-9999.99,0.00018533,2]
[393608391,1762851039923,-2624.75,0.00018533,2]
[393608392,1762851039933,-1522.43,0.00018533,2]
[393608393,1762851039942,-7647.24,0.00018533,2]
[393608394,1762851039952,-24792.59,0.00018533,2]
[393608395,1762851039961,-1534.81,0.00018533,2]
[393608396,1762851039970,-9999.99,0.00018533,2]
[393608397,1762851039980,-344.88,0.00018533,2]
[393608398,1762851039989,-9999.99,0.00018533,2]
[393608399,1762851039998,-150.99,0.00018533,2]
[393608400,1762851040008,-307.29,0.00018533,2]
[393608401,1762851040017,-9999.99,0.00018533,2]
[393608402,1762851040027,-999.99,0.00018533,2]
[393608403,1762851040037,-9999.99,0.00018533,2]
[393608404,1762851040046,-7527.21,0.00018533,2]
[393608405,1762851040055,-299.99,0.00018533,4]
[393608406,1762851040066,-500.0,0.00018573,2]
[393608407,1762851040075,-500.0,0.00018573,2]
[393608408,1762851040085,-500.0,0.00018573,2]
[393608409,1762851040094,-500.0,0.00018573,2]
[393608410,1762851040103,-163.78594161,0.00018573,2]
[393608411,1762851040112,-327.0512117,0.00018573,2]
[393608412,1762851040123,-500.0,0.00018573,2]
[393608413,1762851040133,-500.0,0.00018573,2]
[393608414,1762851040142,-500.0,0.00018573,2]
[393608415,1762851040152,-507.04189464,0.00018573,2]
[393608416,1762851040161,-512.44749743,0.00018573,2]
[393608417,1762851040170,-534.98815412,0.00018573,2]
[393608418,1762851040179,-500.0,0.00018573,2]
[393608419,1762851040188,-500.0,0.00018573,2]
[393608420,1762851040197,-500.0,0.00018573,2]
[393608421,1762851040207,-160.0734419,0.00018573,2]
[393608422,1762851040216,-150.12918919,0.00018573,2]
[393608423,1762851040225,-500.0,0.00018573,2]
[393608424,1762851040235,-500.67483297,0.00018573,2]
[393608425,1762851040244,-500.0,0.00018573,2]
[393608426,1762851040255,-500.0,0.00018573,2]
[393608427,1762851040268,-500.0,0.00018573,2]
[393608428,1762851040278,-218.82459366,0.00018573,2]
[393608429,1762851040287,-500.0,0.00018573,2]
[393608430,1762851040297,-500.0,0.00018573,2]
[393608431,1762851040306,-174.95897203,0.00018573,2]
[393608432,1762851040316,-500.0,0.00018573,2]
[393608433,1762851040325,-500.0,0.00018573,2]
[393608434,1762851040335,-500.0,0.00018573,2]
[393608435,1762851040345,-500.0,0.00018573,2]
[393608436,1762851040355,-500.0,0.00018573,2]
[393608437,1762851040365,-342.5739675,0.00018573,2]
[393608438,1762851040375,-500.0,0.00018573,2]
[393608439,1762851040384,-500.0,0.00018573,2]
[393608440,1762851040393,-1356.75290102,0.00018616,2]
[393608441,1762851040403,-1000.0,0.00018616,2]
[393608442,1762851040413,-512.74339849,0.00018616,2]
[393608443,1762851040422,-2000.0,0.00018616,2]
[393608444,1762851040432,-545.22148485,0.00018616,2]
[393608445,1762851040441,-1351.17997703,0.00018616,2]
[393608446,1762851040452,-1234.0,0.00018636,2]
[393608447,1762851040461,-868.79,0.00018708,2]
[393608448,1762851040471,-691.24,0.0001876,2]
[393608449,1762851040480,-500.0,0.00018767,2]
[393608450,1762851040490,-500.0,0.00018767,2]
[393608451,1762851040499,-500.0,0.00018779,2]
[393608452,1762851040508,-150.15,0.000188,2]
[393608453,1762851040518,-151.0,0.00018827,2]
[393608454,1762851040528,-452853.2143164,0.00018831,2]
[393608455,1762851040537,-500.0,0.00018873,2]
[393608456,1762851040546,-500.26491085,0.00018873,2]
[393608457,1762851040555,-500.0,0.00018873,2]
[393608458,1762851040565,-500.0,0.00018873,2]
[393608459,1762851040575,-500.28399044,0.00018873,2]
[393608460,1762851040583,-565.67330136,0.00018873,2]
[393608461,1762851040593,-500.0,0.00018873,2]
[393608462,1762851040603,-500.0,0.00018873,2]
[393608463,1762851040612,-150.0,0.00018873,2]
[393608464,1762851040621,-162.30554255,0.00018873,2]
[393608465,1762851040631,-215.2,0.00018907,2]
[393608466,1762851040641,-868.88417502,0.00018982,2]
[393608467,1762851040650,-300.0,0.00019,2]
[393608468,1762851040659,-502.1336636,0.00019121,2]
[393608469,1762851040668,-1000.0,0.00019121,2]
[393608470,1762851040677,-500.0,0.00019121,2]
[393608471,1762851040686,-1002.03998791,0.00019121,2]
[393608472,1762851040695,-1000.0,0.00019121,2]
[393608473,1762851040704,-1000.97016324,0.00019121,2]
[393608474,1762851040713,-1000.0,0.00019121,2]
[393608475,1762851040722,-1000.0,0.00019121,2]
[393608476,1762851040731,-1000.0,0.00019121,2]
[393608477,1762851040740,-1003.45791664,0.00019121,2]
[393608478,1762851040749,-1000.0,0.00019121,2]
[393608479,1762851040758,-1000.0,0.00019121,2]
[393608480,1762851040767,-501.63470427,0.00019121,2]
[393608481,1762851040776,-1000.0,0.00019121,2]
[393608482,1762851040785,-362.45651944,0.00019121,2]
[393608483,1762851040794,-1000.0,0.00019121,2]
[393608484,1762851040803,-1000.0,0.00019121,2]
[393608485,1762851040812,-502.15227908,0.00019121,2]
[393608486,1762851040821,-1000.0,0.00019121,2]
[393608487,1762851040830,-1002.39810073,0.00019121,2]
[393608488,1762851040839,-1003.0410571,0.00019121,2]
[393608489,1762851040849,-525.9453993,0.00019121,2]
[393608490,1762851040858,-2500.0,0.00019164,2]
[393608491,1762851040867,-500.0,0.00019178,2]
[393608492,1762851040878,-500.0,0.00019178,2]
[393608493,1762851040887,-500.0,0.00019178,2]
[393608494,1762851040896,-500.0,0.00019178,2]
[393608495,1762851040906,-500.0,0.00019178,2]
[393608496,1762851040916,-500.0,0.00019178,2]
[393608497,1762851040925,-500.0,0.00019178,2]
[393608498,1762851040934,-200.0,0.00019178,2]
[393608499,1762851040943,-150.0,0.00019178,2]
[393608500,1762851040953,-500.0,0.00019291,2]
[393608501,1762851040961,-500.0,0.00019315,2]
[393608502,1762851040971,-502.68139073,0.00019327,2]
[393608503,1762851040980,-500.0,0.00019338,2]
[393608504,1762851040989,-160.90585572,0.00019373,2]
[393608505,1762851040998,-300.0,0.00019406,2]
[393608506,1762851041008,-502.32902604,0.00019421,2]
[393608507,1762851041018,-502.29417655,0.00019421,2]
[393608508,1762851041027,-178.3008851,0.00019421,2]
[393608509,1762851041036,-501.80253171,0.00019421,2]
[393608510,1762851041046,-1000.0,0.00019421,2]
[393608511,1762851041055,-204.91063775,0.00019421,2]
[393608512,1762851041064,-215.2,0.00019435,2]
[393608513,1762851041074,-691.24,0.00019438,2]
[393608514,1762851041083,-517.52451907,0.00019668,2]
[393608515,1762851041092,-1500.0,0.00019668,2]
[393608516,1762851041101,-1280.1104664,0.00019668,2]
[393608517,1762851041110,-562.61261097,0.00019668,2]
[393608518,1762851041119,-1000.0,0.00019668,2]
[393608519,1762851041130,-329.92882187,0.00019668,2]
[393608520,1762851041140,-1500.0,0.00019668,2]
[393608521,1762851041149,-638.34373224,0.00019668,2]
[393608522,1762851041159,-377.32217667,0.00019668,2]
[393608523,1762851041169,-500.0,0.00019668,2]
[393608524,1762851041179,-500.0,0.00019668,2]
[393608525,1762851041188,-823.0,0.00019669,2]
[393608526,1762851041197,-1556.68037501,0.00019712,2]
[393608527,1762851041206,-250.0,0.00019726,2]
[393608528,1762851041216,-200.0,0.00019793,2]
[393608529,1762851041226,-400.0,0.00019863,2]
[393608530,1762851041235,-215.2,0.00019964,2]
[393608531,1762851041245,-1223.0,0.0001997,2]
[393608532,1762851041254,-691.24,0.00020116,2]
[393608533,1762851041267,-291.06,0.00020187,2]
[393608534,1762851041279,-1693.18159136,0.00020216,2]
[393608535,1762851041288,-332.23810148,0.00020274,2]
[393608536,1762851041297,-52037.35930119,0.00020382,2]
[393608537,1762851041309,-34600.54959559,0.00020383,2]
[393608538,1762851041318,-793.46197455,0.00020426,2]
[393608539,1762851041327,-215.2,0.00020492,2]
[393608540,1762851041339,-600.0,0.00020548,2]
[393608541,1762851041349,-478.44322026,0.00020569,2]
[393608542,1762851041358,-1000.0,0.0002059,2]
[393608543,1762851041367,-857.0,0.0002063,2]
[393608544,1762851041379,-325.0,0.0002063,2]
[393608545,1762851041388,-663.62,0.00020648,2]
[393608546,1762851041398,-2616.95,0.00020657,2]
[393608547,1762851041407,-1586.73367646,0.00020695,2]
[393608548,1762851041416,-452853.2143164,0.00020742,2]
[393608549,1762851041426,-691.24,0.00020795,2]
[393608550,1762851041435,-405.38402433,0.00021233,2]
[393608551,1762851041445,-1862.5,0.00021491,2]
[393608552,1762851041454,-200.0,0.000215,2]
[393608553,1762851041464,-200.0,0.000215,2]
[393608554,1762851041473,-201.0,0.00021527,2]
[393608555,1762851041482,-200.0,0.00021715,2]
[393608556,1762851041492,-150.15,0.00021908,2]
[393608557,1762851041501,-2994.91550426,0.00021918,2]
[393608558,1762851041511,-437.5815132,0.00021998,2]
[393608559,1762851041520,-211.15,0.00022,2]
[393608560,1762851041529,-1000.0,0.00022649,2]
[393608561,1762851041538,-52037.35930119,0.00023108,2]
[393608562,1762851041548,-34600.54959559,0.00023109,2]
[393608563,1762851041558,-793.46197455,0.00023174,2]
[393608564,1762851041568,-211.15,0.00024221,2]
[393608565,1762851041577,-394.7,0.00024496,2]
[393608566,1762851041586,-150.0,0.00024502,2]
[393608567,1762851041596,-225.75,0.00024536,2]
[393608568,1762851041605,-151.06,0.00024658,2]
[393608569,1762851041614,-793.12,0.00024658,30]
[393608570,1762851041624,-1000.0,0.00024708,2]
[393608571,1762851041633,-9119.95,0.000248,7]
[393608572,1762851041643,-308525.670765,0.000248,3]
[393608573,1762851041652,-151.0,0.00024897,7]
[393608574,1762851041662,-407623.69745,0.000249,3]
[393608575,1762851041671,-437.5815132,0.00025531,2]
[393608576,1762851041680,-1669.52,0.00025708,2]
[393608577,1762851041689,-52037.35930119,0.00025834,2]
[393608578,1762851041698,-34600.54959559,0.00025835,2]
[393608579,1762851041707,-793.46197455,0.00025922,2]
[393608580,1762851041717,-500.0,0.00026235,2]
[393608581,1762851041726,-211.15,0.00026441,7]
[393608582,1762851041735,-291.06,0.00026676,2]
[393608583,1762851041744,-1181.0,0.000271,2]
[393608584,1762851041754,-300.0,0.00027397,2]
[393608585,1762851041763,-501.00007899,0.00027496,5]
[393608586,1762851041772,-2527.71,0.000275,2]
[393608587,1762851041782,-239.17,0.000275,7]
[393608588,1762851041791,-927.51,0.000275,7]
[393608589,1762851041800,-198.27839501,0.00027956,2]
[393608590,1762851041809,-9119.95,0.000284,7]
[393608591,1762851041819,-52037.35930119,0.00028559,2]
[393608592,1762851041828,-34600.54959559,0.0002856,2]
[393608593,1762851041837,-211.15,0.00028662,30]
[393608594,1762851041846,-793.46197455,0.00028669,2]
[393608595,1762851041855,-156.164658,0.00028854,2]
[393608596,1762851041864,-437.5815132,0.00029065,2]
[393608597,1762851041874,-394.7,0.0002962,2]
[393608598,1762851041883,-793.12,0.00029704,30]
[393608599,1762851041893,-1586.73367645,0.00030178,2]
[393608600,1762851041902,-150.0,0.000302,30]
[393608601,1762851041911,-4202.0,0.000303,3]
[393608602,1762851041920,-153.0,0.00030634,2]
[393608603,1762851041929,-153.0,0.00030634,2]
[393608604,1762851041938,-153.0,0.00030634,2]
[393608605,1762851041947,-153.0,0.00030634,2]
[393608606,1762851041956,-153.0,0.00030634,2]
[393608607,1762851041965,-153.0,0.00030634,2]
[393608608,1762851041975,-153.0,0.00030698,2]
[393608609,1762851041983,-153.0,0.00030698,2]
[393608610,1762851041992,-153.0,0.00030698,2]
[393608611,1762851042000,-153.0,0.00030698,2]
[393608612,1762851042010,-153.0,0.00030698,2]
[393608613,1762851042019,-153.0,0.00030698,2]
[393608614,1762851042028,-153.0,0.00030698,2]
[393608615,1762851042038,-153.0,0.00030698,2]
[393608616,1762851042047,-153.0,0.00030698,2]
[393608617,1762851042056,-153.0,0.00030698,2]
[393608618,1762851042066,-1181.87589554,0.000308,2]
[393608619,1762851042075,-211.15,0.00030882,30]
[393608620,1762851042084,-2527.71,0.000309,2]
[393608621,1762851042093,-239.17,0.000309,7]
[393608622,1762851042103,-5516.0,0.000309,5]
[393608623,1762851042112,-534.44954975,0.00030953,5]
[393608624,1762851042122,-500.0,0.00030953,5]
[393608625,1762851042132,-927.51,0.00031,30]
[393608626,1762851042142,-52037.35930119,0.00031285,2]
[393608627,1762851042151,-34600.54959559,0.00031286,2]
[393608628,1762851042160,-500.0,0.00031343,5]
[393608629,1762851042169,-505.2514146,0.00031343,5]
[393608630,1762851042179,-9119.95,0.000314,7]
[393608631,1762851042188,-793.46197455,0.00031417,15]
[393608632,1762851042197,-151.06,0.000315,2]
[393608633,1762851042207,-500.0,0.00031501,5]
[393608634,1762851042215,-150.0,0.00031832,2]
[393608635,1762851042224,-595.88155355,0.00031891,5]
[393608636,1762851042234,-500.0,0.00032442,2]
[393608637,1762851042243,-500.0,0.00032442,120]
[393608638,1762851042253,-500.0,0.00032442,120]
[393608639,1762851042266,-707.77038929,0.00032443,2]
[393608640,1762851042275,-150.15,0.00032443,2]
[393608641,1762851042284,-666.0,0.00032452,10]
[393608642,1762851042293,-500.0,0.00032452,2]
[393608643,1762851042303,-500.0,0.00032452,2]
[393608644,1762851042313,-500.0,0.00032452,120]
[393608645,1762851042323,-515.42408665,0.00032452,120]
[393608646,1762851042332,-420000.0,0.00032453,2]
[393608647,1762851042345,-2571.57890656,0.00032453,2]
[393608648,1762851042354,-505.14650434,0.00032473,5]
[393608649,1762851042363,-501.80740999,0.00032473,5]
[393608650,1762851042372,-3688.426,0.00032553,32]
[393608651,1762851042383,-437.5815132,0.00032598,2]
[393608652,1762851042392,-319.934,0.00032603,33]
[393608653,1762851042402,-250.0,0.00032682,2]
[393608654,1762851042411,-2527.71,0.000327,2]
[393608655,1762851042420,-239.17,0.000327,7]
[393608656,1762851042429,-927.51,0.000327,30]
[393608657,1762851042439,-666.0,0.00032853,10]
[393608658,1762851042448,-395.94,0.000329,60]
[393608659,1762851042457,-162.0,0.00033,14]
[393608660,1762851042466,-211.15,0.00033103,30]
[393608661,1762851042476,-291.06,0.00033165,2]
[393608662,1762851042486,-250.0,0.0003337,2]
[393608663,1762851042495,-151.0,0.0003337,2]
[393608664,1762851042505,-250.0,0.0003337,2]
[393608665,1762851042514,-250.0,0.0003337,2]
[393608666,1762851042524,-151.0,0.0003337,2]
[393608667,1762851042533,-250.0,0.0003337,2]
[393608668,1762851042543,-250.0,0.0003337,2]
[393608669,1762851042552,-151.0,0.0003337,2]
[393608670,1762851042561,-250.0,0.0003337,2]
[393608671,1762851042571,-250.0,0.0003337,2]
[393608672,1762851042580,-151.0,0.0003337,2]
[393608673,1762851042590,-250.0,0.0003337,2]
[393608674,1762851042599,-250.0,0.0003337,2]
[393608675,1762851042608,-151.0,0.0003337,2]
[393608676,1762851042618,-250.0,0.0003337,2]
[393608677,1762851042628,-250.0,0.0003337,2]
[393608678,1762851042638,-151.0,0.0003337,2]
[393608679,1762851042647,-500.0,0.0003337,2]
[393608680,1762851042656,-250.0,0.0003337,2]
[393608681,1762851042666,-151.0,0.0003337,2]
[393608682,1762851042675,-250.0,0.0003337,2]
[393608683,1762851042686,-500.0,0.0003337,2]
[393608684,1762851042695,-250.0,0.0003337,2]
[393608685,1762851042704,-151.0,0.0003337,2]
[393608686,1762851042713,-500.0,0.0003337,2]
[393608687,1762851042723,-250.0,0.0003337,2]
[393608688,1762851042732,-250.0,0.0003337,2]
[393608689,1762851042744,-151.0,0.0003337,2]
[393608690,1762851042753,-277.35679052,0.0003337,2]
[393608691,1762851042763,-500.0,0.0003337,2]
[393608692,1762851042774,-250.0,0.0003337,2]
[393608693,1762851042784,-250.0,0.0003337,2]
[393608694,1762851042794,-151.0,0.0003337,2]
[393608695,1762851042803,-250.0,0.0003337,2]
[393608696,1762851042812,-500.0,0.0003337,2]
[393608697,1762851042821,-250.0,0.0003337,2]
[393608698,1762851042830,-646.51770585,0.0003337,2]
[393608699,1762851042839,-250.0,0.0003337,2]
[393608700,1762851042848,-500.0,0.0003337,2]
[393608701,1762851042857,-250.0,0.0003337,2]
[393608702,1762851042867,-151.0,0.0003337,2]
[393608703,1762851042877,-151.0,0.0003337,2]
[393608704,1762851042888,-500.0,0.0003337,2]
[393608706,1762851042898,-500.0,0.0003337,2]
[393608707,1762851042907,-591.59799213,0.0003337,2]
[393608708,1762851042917,-500.0,0.0003337,2]
[393608709,1762851042926,-500.0,0.0003337,2]
[393608710,1762851042935,-500.0,0.0003337,2]
[393608711,1762851042945,-250.0,0.0003337,2]
[393608712,1762851042955,-500.0,0.0003337,2]
[393608713,1762851042965,-250.0,0.0003337,2]
[393608714,1762851042975,-250.0,0.0003337,2]
[393608717,1762851042984,-250.0,0.0003337,2]
[393608720,1762851042993,-250.0,0.0003337,2]
[393608723,1762851043002,-322.6107,0.0003337,2]
[393608725,1762851043011,-250.0,0.0003337,2]
[393608727,1762851043021,-250.0,0.0003337,2]
[393608729,1762851043031,-250.0,0.0003337,2]
[393608730,1762851043040,-250.0,0.0003337,2]
[393608731,1762851043049,-250.0,0.0003337,2]
[393608732,1762851043059,-250.0,0.0003337,2]
[393608733,1762851043068,-250.0,0.0003337,2]
[393608734,1762851043078,-250.0,0.0003337,2]
[393608735,1762851043087,-250.0,0.0003337,2]
[393608736,1762851043097,-574.12855637,0.0003337,2]
[393608737,1762851043107,-250.0,0.0003337,2]
[393608738,1762851043263,-250.0,0.0003337,2]
[393608739,1762851043273,-250.0,0.0003337,2]
[393608740,1762851043283,-250.0,0.0003337,2]
[393608741,1762851043292,-250.0,0.0003337,2]
[393608742,1762851043301,-250.0,0.0003337,2]
[393608743,1762851043312,-250.0,0.0003337,2]
[393608744,1762851043321,-250.0,0.0003337,2]
[393608745,1762851043332,-207.31242024,0.0003337,2]
[393608746,1762851043342,-2571.57890654,0.00033654,2]
[393608747,1762851043351,-300.0,0.00033699,10]
[393608748,1762851043360,-9119.95,0.000337,14]
[393608749,1762851043370,-180.66875269,0.00033894,11]
[393608751,1762851043380,-595.37131296,0.00033918,2]
[393608752,1762851043389,-52037.35930119,0.00034011,2]
[393608753,1762851043399,-34600.54959559,0.00034012,2]
[393608754,1762851043408,-793.46197455,0.00034165,15]
[393608755,1762851043418,-500.0,0.00034169,2]
[393608756,1762851043427,-300.0,0.0003417,2]
[393608757,1762851043437,-300.0,0.0003417,2]
[393608758,1762851043447,-300.0,0.0003417,2]
[393608759,1762851043457,-300.0,0.0003417,2]
[393608760,1762851043467,-300.0,0.0003417,2]
[393608761,1762851043476,-351.94282591,0.0003417,2]
[393608762,1762851043486,-156.164658,0.0003428,2]
[393608763,1762851043495,-155.113024,0.0003428,2]
[393608764,1762851043504,-161.833417,0.0003428,2]
[393608765,1762851043515,-224.84404007,0.000343,2]
[393608766,1762851043524,-1742.47277303,0.00034409,2]
[393608767,1762851043533,-500.0,0.00034464,7]
[393608769,1762851043543,-617.40005154,0.00034466,2]
[393608771,1762851043552,-500.0,0.00034485,7]
[393608773,1762851043562,-500.0,0.00034498,7]
[393608774,1762851043571,-500.0,0.00034509,7]
[393608775,1762851043581,-500.0,0.00034517,7]
[393608776,1762851043591,-162.0,0.00034521,30]
[393608778,1762851043600,-900.0,0.00034559,7]
[393608780,1762851043610,-500.0,0.00034561,7]
[393608781,1762851043620,-500.0,0.00034574,7]
[393608782,1762851043630,-500.0,0.00034604,7]
[393608783,1762851043640,-500.0,0.00034609,7]
[393608785,1762851043649,-500.0,0.00034614,7]
[393608787,1762851043659,-500.0,0.00034628,7]
[393608789,1762851043669,-500.0,0.00034668,7]
[393608791,1762851043678,-500.0,0.00034685,7]
[393608793,1762851043689,-500.0,0.00034697,7]
[393608795,1762851043699,-320.72855198,0.00034739,2]
[393608797,1762851043708,-151.0,0.00034739,2]
[393608798,1762851043718,-334.5472959,0.00034739,2]
[393608799,1762851043736,-500.0,0.00034743,7]
[393608800,1762851043754,-500.0,0.00034746,7]
[393608801,1762851043763,-793.12,0.00034751,30]
[393608802,1762851043772,-500.0,0.0003478,7]
[393608803,1762851043782,-500.0,0.00034786,7]
[393608804,1762851043791,-2527.71,0.000348,2]
[393608805,1762851043800,-239.17,0.000348,14]
[393608806,1762851043810,-927.51,0.000348,30]
[393608807,1762851043819,-175.42,0.00034811,2]
[393608808,1762851043828,-500.0,0.00034812,7]
[393608809,1762851043839,-500.0,0.00034813,7]
[393608810,1762851043851,-500.0,0.00034818,7]
[393608811,1762851043862,-900.0,0.00034818,7]
[393608812,1762851043871,-500.0,0.00034819,7]
[393608813,1762851043881,-500.0,0.00034823,7]
[393608814,1762851043891,-500.0,0.00034835,7]
[393608815,1762851043901,-2571.57890654,0.00034855,2]
[393608816,1762851043911,-900.0,0.00034868,7]
[393608817,1762851043921,-175.42,0.00034878,2]
[393608818,1762851043930,-500.0,0.00034926,7]
[393608819,1762851043940,-900.0,0.00034935,7]
[393608820,1762851043949,-900.0,0.00034944,7]
[393608821,1762851043958,-175.42,0.00034946,2]
[393608822,1762851043967,-500.0,0.00034963,7]
[393608823,1762851043977,-500.0,0.00034966,7]
[393608824,1762851043986,-500.0,0.00035002,30]
[393608825,1762851043995,-900.0,0.00035004,30]
[393608826,1762851044004,-500.0,0.00035007,30]
[393608827,1762851044013,-640.24385345,0.00035014,2]
[393608828,1762851044022,-500.0,0.00035043,30]
[393608829,1762851044031,-500.0,0.00035045,30]
[393608830,1762851044040,-500.0,0.00035075,30]
[393608831,1762851044050,-500.0,0.00035084,30]
[393608832,1762851044060,-500.0,0.00035097,30]
[393608833,1762851044069,-500.0,0.00035097,30]
[393608834,1762851044078,-500.0,0.0003511,30]
[393608835,1762851044088,-900.0,0.00035121,30]
[393608836,1762851044097,-900.0,0.0003515,30]
[393608837,1762851044107,-500.0,0.00035159,30]
[393608838,1762851044117,-500.0,0.0003521,30]
[393608839,1762851044127,-500.0,0.00035219,30]
[393608840,1762851044137,-900.0,0.00035264,30]
[393608841,1762851044147,-500.0,0.00035303,30]
[393608842,1762851044159,-500.0,0.00035312,30]
[393608843,1762851044170,-900.0,0.0003532,30]
[393608844,1762851044179,-211.15,0.00035324,60]
[393608845,1762851044188,-500.0,0.0003535,30]
[393608846,1762851044197,-500.0,0.00035369,30]
[393608847,1762851044207,-504.91597169,0.0003538,30]
[393608848,1762851044216,-500.0,0.00035399,30]
[393608849,1762851044226,-500.0,0.00035399,30]
[393608850,1762851044237,-900.0,0.00035426,30]
[393608851,1762851044246,-500.0,0.00035427,30]
[393608852,1762851044256,-500.0,0.00035448,30]
[393608853,1762851044268,-506.46253438,0.00035454,30]
[393608854,1762851044278,-900.0,0.0003547,30]
[393608855,1762851044287,-460.09032758,0.00035482,30]
[393608856,1762851044309,-500.0,0.00035485,30]
[393608857,1762851044320,-500.0,0.0003549,30]
[393608858,1762851044332,-900.0,0.00035496,30]
[393608859,1762851044344,-900.0,0.00035524,30]
[393608860,1762851044354,-900.0,0.00035529,30]
[393608861,1762851044363,-500.0,0.0003553,30]
[393608862,1762851044374,-900.0,0.00035547,30]